[Event "Titled Tuesday Blitz June 6 Early 2023"]
[White "Naroditsky, Daniel"]
[Black "Di Nicolantonio, Lucas"]
[WhiteFideId "2026961"]
[BlackFideId "680460"]
[WhiteElo "2632"]
[BlackElo "2358"]
[Result "1-0"]
[Round "1"]
[TimeControl "180+2"]
[Date "2023.06.06"]
[WhiteClock "0:02:17"]
[BlackClock "0:02:11"]
[Board "2"]

1. e4 {[%clk 0:02:55]}  c6 {[%clk 0:03:00]} 2. d4 {[%clk 0:02:54]}  d5 {[%clk 0:03:01]} 3. f3 {[%clk 0:02:55]}  Qb6 {[%clk 0:02:59]} 4. Nc3 {[%clk 0:02:54]}  e6 {[%clk 0:02:59]} 5. a3 {[%clk 0:02:43]}  Nd7 {[%clk 0:02:56]} 6. Be3 {[%clk 0:02:42]}  Be7 {[%clk 0:02:55]} 7. Bd3 {[%clk 0:02:31]}  Ngf6 {[%clk 0:02:41]} 8. Nge2 {[%clk 0:02:30]}  dxe4 {[%clk 0:02:39]} 9. fxe4 {[%clk 0:02:29]}  e5 {[%clk 0:02:35]} 10. Qd2 {[%clk 0:02:20]}  O-O {[%clk 0:02:34]} 11. dxe5 {[%clk 0:02:19]}  Qxb2 {[%clk 0:02:11]} 12. Ra2 {[%clk 0:02:17]} 1-0


[Site "https://www.chess.com"]

[Event "Titled Tuesday Blitz June 6 Early 2023"]
[White "Martinez Alcantara, Jose Eduardo"]
[Black "Janaszak, Dawid"]
[WhiteFideId "3805662"]
[BlackFideId "1119206"]
[WhiteElo "2711"]
[BlackElo "2220"]
[Result "1-0"]
[Round "1"]
[TimeControl "180+2"]
[Date "2023.06.06"]
[WhiteClock "0:00:50"]
[BlackClock "0:00:09"]
[Board "4"]

1. e4 {[%clk 0:02:59]}  c5 {[%clk 0:02:57]} 2. Nf3 {[%clk 0:02:56]}  Nc6 {[%clk 0:02:57]} 3. c3 {[%clk 0:02:56]}  e5 {[%clk 0:02:55]} 4. Bc4 {[%clk 0:02:54]}  Nf6 {[%clk 0:02:55]} 5. d3 {[%clk 0:02:54]}  Be7 {[%clk 0:02:55]} 6. Bg5 {[%clk 0:02:55]}  O-O {[%clk 0:02:55]} 7. Nbd2 {[%clk 0:02:55]}  d6 {[%clk 0:02:55]} 8. Bxf6 {[%clk 0:02:52]}  Bxf6 {[%clk 0:02:55]} 9. O-O {[%clk 0:02:53]}  Kh8 {[%clk 0:02:51]} 10. Re1 {[%clk 0:02:52]}  Rb8 {[%clk 0:02:45]} 11. a4 {[%clk 0:02:51]}  a6 {[%clk 0:02:45]} 12. Nf1 {[%clk 0:02:51]}  Be6 {[%clk 0:02:45]} 13. Ne3 {[%clk 0:02:50]}  Bxc4 {[%clk 0:02:40]} 14. dxc4 {[%clk 0:02:50]}  g6 {[%clk 0:02:31]} 15. Qd3 {[%clk 0:02:46]}  Bg7 {[%clk 0:02:12]} 16. Red1 {[%clk 0:02:45]}  Qb6 {[%clk 0:02:06]} 17. Qc2 {[%clk 0:02:37]}  Ne7 {[%clk 0:02:00]} 18. h4 {[%clk 0:02:35]}  f5 {[%clk 0:01:58]} 19. h5 {[%clk 0:02:33]}  Rbd8 {[%clk 0:01:50]} 20. hxg6 {[%clk 0:02:32]}  hxg6 {[%clk 0:01:51]} 21. Ng5 {[%clk 0:02:31]}  Rf6 {[%clk 0:01:46]} 22. Nd5 {[%clk 0:02:10]}  Nxd5 {[%clk 0:01:45]} 23. cxd5 {[%clk 0:02:10]}  Bh6 {[%clk 0:01:36]} 24. Ne6 {[%clk 0:02:10]}  Rd7 {[%clk 0:01:34]} 25. g3 {[%clk 0:02:00]}  c4 {[%clk 0:01:34]} 26. Kg2 {[%clk 0:01:58]}  f4 {[%clk 0:01:28]} 27. Rh1 {[%clk 0:01:57]}  Rh7 {[%clk 0:01:28]} 28. Rh3 {[%clk 0:01:34]}  fxg3 {[%clk 0:01:22]} 29. Rxg3 {[%clk 0:01:25]}  Bf4 {[%clk 0:01:09]} 30. Rh3 {[%clk 0:01:25]}  Rxh3 {[%clk 0:01:06]} 31. Kxh3 {[%clk 0:01:26]}  Be3 {[%clk 0:00:49]} 32. Qe2 {[%clk 0:00:55]}  Bxf2 {[%clk 0:00:42]} 33. Rf1 {[%clk 0:00:54]}  g5 {[%clk 0:00:16]} 34. Kg2 {[%clk 0:00:51]}  Rxe6 {[%clk 0:00:09]} 35. dxe6 {[%clk 0:00:50]}  Bh4 {[%clk 0:00:09]} 36. Qh5+ {[%clk 0:00:50]}  Kg7 {[%clk 0:00:09]} 37. Rf7+ {[%clk 0:00:50]} 1-0


[Site "https://www.chess.com"]

[Event "Titled Tuesday Blitz June 6 Early 2023"]
[White "Toczek, Grzegorz"]
[Black "Duda, Jan-Krzysztof"]
[WhiteFideId "1106457"]
[BlackFideId "1170546"]
[WhiteElo "2093"]
[BlackElo "2783"]
[Result "0-1"]
[Round "1"]
[TimeControl "180+2"]
[Date "2023.06.06"]
[WhiteClock "0:00:03"]
[BlackClock "0:00:38"]
[Board "5"]

1. e4 {[%clk 0:02:59]}  e6 {[%clk 0:02:57]} 2. d4 {[%clk 0:02:57]}  d5 {[%clk 0:02:58]} 3. Nd2 {[%clk 0:02:57]}  c5 {[%clk 0:02:55]} 4. exd5 {[%clk 0:02:57]}  Qxd5 {[%clk 0:02:56]} 5. dxc5 {[%clk 0:02:57]}  Qxc5 {[%clk 0:02:55]} 6. Ngf3 {[%clk 0:02:56]}  Nf6 {[%clk 0:02:55]} 7. Bd3 {[%clk 0:02:54]}  Nbd7 {[%clk 0:02:52]} 8. O-O {[%clk 0:02:53]}  b6 {[%clk 0:02:53]} 9. Ne4 {[%clk 0:02:46]}  Qc7 {[%clk 0:02:53]} 10. Bg5 {[%clk 0:02:40]}  Bb7 {[%clk 0:02:51]} 11. Qe2 {[%clk 0:02:39]}  Nd5 {[%clk 0:02:44]} 12. c3 {[%clk 0:02:33]}  h6 {[%clk 0:02:43]} 13. Bd2 {[%clk 0:02:30]}  a6 {[%clk 0:02:41]} 14. Rfe1 {[%clk 0:02:28]}  Be7 {[%clk 0:02:39]} 15. Rad1 {[%clk 0:02:26]}  Nf4 {[%clk 0:02:35]} 16. Bxf4 {[%clk 0:02:26]}  Qxf4 {[%clk 0:02:36]} 17. Bb1 {[%clk 0:02:19]}  Nc5 {[%clk 0:02:28]} 18. Nxc5 {[%clk 0:02:17]}  Bxf3 {[%clk 0:02:29]} 19. Qxf3 {[%clk 0:02:10]}  Qxf3 {[%clk 0:02:28]} 20. gxf3 {[%clk 0:02:08]}  Bxc5 {[%clk 0:02:29]} 21. Be4 {[%clk 0:02:05]}  Ra7 {[%clk 0:02:29]} 22. b4 {[%clk 0:02:01]}  Be7 {[%clk 0:02:28]} 23. Bc6+ {[%clk 0:02:00]}  Kf8 {[%clk 0:02:29]} 24. a3 {[%clk 0:01:58]}  Bf6 {[%clk 0:02:26]} 25. c4 {[%clk 0:01:57]}  Ke7 {[%clk 0:02:26]} 26. Re3 {[%clk 0:01:45]}  Rc8 {[%clk 0:02:26]} 27. b5 {[%clk 0:01:44]}  Kf8 {[%clk 0:02:11]} 28. a4 {[%clk 0:01:42]}  axb5 {[%clk 0:01:47]} 29. axb5 {[%clk 0:01:43]}  Be7 {[%clk 0:01:46]} 30. Red3 {[%clk 0:01:41]}  g5 {[%clk 0:01:36]} 31. Rd7 {[%clk 0:01:40]}  Rxd7 {[%clk 0:01:37]} 32. Rxd7 {[%clk 0:01:40]}  Bc5 {[%clk 0:01:37]} 33. Kg2 {[%clk 0:01:30]}  Kg7 {[%clk 0:01:37]} 34. h3 {[%clk 0:01:17]}  h5 {[%clk 0:01:34]} 35. Rd2 {[%clk 0:01:16]}  Kg6 {[%clk 0:01:32]} 36. Be4+ {[%clk 0:01:15]}  f5 {[%clk 0:01:29]} 37. Bc6 {[%clk 0:01:16]}  Kf6 {[%clk 0:01:30]} 38. Re2 {[%clk 0:01:08]}  Rd8 {[%clk 0:01:29]} 39. Rc2 {[%clk 0:00:57]}  Ke5 {[%clk 0:01:25]} 40. Re2+ {[%clk 0:00:55]}  Kf4 {[%clk 0:01:25]} 41. Rc2 {[%clk 0:00:42]}  Rd4 {[%clk 0:01:18]} 42. Bb7 {[%clk 0:00:41]}  h4 {[%clk 0:01:08]} 43. Bc8 {[%clk 0:00:41]}  e5 {[%clk 0:01:06]} 44. Bb7 {[%clk 0:00:41]}  Rd3 {[%clk 0:01:04]} 45. Bd5 {[%clk 0:00:38]}  e4 {[%clk 0:00:48]} 46. fxe4 {[%clk 0:00:38]}  g4 {[%clk 0:00:49]} 47. exf5 {[%clk 0:00:33]}  gxh3+ {[%clk 0:00:48]} 48. Kh2 {[%clk 0:00:33]}  Kxf5 {[%clk 0:00:43]} 49. Re2 {[%clk 0:00:27]}  Bd6+ {[%clk 0:00:42]} 50. f4 {[%clk 0:00:07]}  Bxf4+ {[%clk 0:00:42]} 51. Kg1 {[%clk 0:00:08]}  Rd1+ {[%clk 0:00:42]} 52. Kf2 {[%clk 0:00:08]}  h2 {[%clk 0:00:43]} 53. Bg2 {[%clk 0:00:07]}  h1=Q {[%clk 0:00:37]} 54. Bxh1 {[%clk 0:00:05]}  Rxh1 {[%clk 0:00:38]} 55. Kg2 {[%clk 0:00:03]}  Rh2+ {[%clk 0:00:38]} 0-1


[Site "https://www.chess.com"]

[Event "Titled Tuesday Blitz June 6 Early 2023"]
[White "Korobov, Anton"]
[Black "Aggelis, Nikolaos"]
[WhiteFideId "14105730"]
[BlackFideId "4213220"]
[WhiteElo "2638"]
[BlackElo "2189"]
[Result "1-0"]
[Round "1"]
[TimeControl "180+2"]
[Date "2023.06.06"]
[WhiteClock "0:02:04"]
[BlackClock "0:00:33"]
[Board "8"]

1. d4 {[%clk 0:02:58]}  f5 {[%clk 0:02:58]} 2. g3 {[%clk 0:02:56]}  Nf6 {[%clk 0:02:58]} 3. Bg2 {[%clk 0:02:57]}  g6 {[%clk 0:02:58]} 4. Nf3 {[%clk 0:02:57]}  Bg7 {[%clk 0:02:59]} 5. O-O {[%clk 0:02:57]}  O-O {[%clk 0:03:00]} 6. b3 {[%clk 0:02:57]}  d6 {[%clk 0:03:00]} 7. Bb2 {[%clk 0:02:58]}  Nbd7 {[%clk 0:02:56]} 8. Nbd2 {[%clk 0:02:58]}  c6 {[%clk 0:02:53]} 9. Re1 {[%clk 0:02:52]}  Ne4 {[%clk 0:02:50]} 10. Nxe4 {[%clk 0:02:49]}  fxe4 {[%clk 0:02:51]} 11. Ng5 {[%clk 0:02:50]}  d5 {[%clk 0:02:43]} 12. Ne6 {[%clk 0:02:50]}  Qa5 {[%clk 0:02:44]} 13. Nxg7 {[%clk 0:02:46]}  Kxg7 {[%clk 0:02:43]} 14. f3 {[%clk 0:02:46]}  e3 {[%clk 0:01:48]} 15. Qd3 {[%clk 0:02:35]}  Qd2 {[%clk 0:01:48]} 16. Rad1 {[%clk 0:02:34]}  Qxd3 {[%clk 0:01:48]} 17. Rxd3 {[%clk 0:02:33]}  e6 {[%clk 0:01:32]} 18. Rxe3 {[%clk 0:02:33]}  Nf6 {[%clk 0:01:32]} 19. c4 {[%clk 0:02:31]}  Kf7 {[%clk 0:01:32]} 20. Rc3 {[%clk 0:02:30]}  Bd7 {[%clk 0:01:32]} 21. e4 {[%clk 0:02:30]}  Rfc8 {[%clk 0:01:28]} 22. Ba3 {[%clk 0:02:28]}  b5 {[%clk 0:01:28]} 23. Bd6 {[%clk 0:02:27]}  a5 {[%clk 0:01:27]} 24. Rec1 {[%clk 0:02:19]}  bxc4 {[%clk 0:01:14]} 25. bxc4 {[%clk 0:02:18]}  Ne8 {[%clk 0:01:14]} 26. Be5 {[%clk 0:02:17]}  Ke7 {[%clk 0:01:09]} 27. f4 {[%clk 0:02:17]}  Nd6 {[%clk 0:01:06]} 28. cxd5 {[%clk 0:02:10]}  cxd5 {[%clk 0:00:54]} 29. Rxc8 {[%clk 0:02:09]}  Rxc8 {[%clk 0:00:54]} 30. Rxc8 {[%clk 0:02:09]}  Nxc8 {[%clk 0:00:48]} 31. exd5 {[%clk 0:02:10]}  exd5 {[%clk 0:00:48]} 32. Bxd5 {[%clk 0:02:10]}  Be6 {[%clk 0:00:48]} 33. Bb7 {[%clk 0:02:08]}  Nd6 {[%clk 0:00:47]} 34. Bxd6+ {[%clk 0:02:08]}  Kxd6 {[%clk 0:00:48]} 35. a3 {[%clk 0:02:08]}  Bd5 {[%clk 0:00:44]} 36. Bxd5 {[%clk 0:02:04]}  Kxd5 {[%clk 0:00:45]} 37. Kf2 {[%clk 0:02:05]}  Kxd4 {[%clk 0:00:43]} 38. Kf3 {[%clk 0:02:05]}  h5 {[%clk 0:00:44]} 39. h3 {[%clk 0:02:05]}  a4 {[%clk 0:00:43]} 40. g4 {[%clk 0:02:04]}  hxg4+ {[%clk 0:00:44]} 41. hxg4 {[%clk 0:02:02]}  Kc4 {[%clk 0:00:39]} 42. f5 {[%clk 0:02:02]}  gxf5 {[%clk 0:00:36]} 43. gxf5 {[%clk 0:02:03]}  Kd5 {[%clk 0:00:33]} 44. Kf4 {[%clk 0:02:04]}  Kd6 {[%clk 0:00:33]} 45. Kg5 {[%clk 0:02:04]} 1-0


[Site "https://www.chess.com"]

[Event "Titled Tuesday Blitz June 6 Early 2023"]
[White "Petukhov, Dmitry"]
[Black "Andreikin, Dmitry"]
[WhiteFideId "4142748"]
[BlackFideId "4158814"]
[WhiteElo "2311"]
[BlackElo "2736"]
[Result "0-1"]
[Round "1"]
[TimeControl "180+2"]
[Date "2023.06.06"]
[WhiteClock "0:00:54"]
[BlackClock "0:01:28"]
[Board "9"]

1. e4 {[%clk 0:03:00]}  c5 {[%clk 0:02:59]} 2. c3 {[%clk 0:03:00]}  d5 {[%clk 0:02:55]} 3. exd5 {[%clk 0:03:01]}  Qxd5 {[%clk 0:02:56]} 4. d4 {[%clk 0:03:01]}  Nf6 {[%clk 0:02:57]} 5. Nf3 {[%clk 0:03:01]}  e6 {[%clk 0:02:57]} 6. Be2 {[%clk 0:03:02]}  Nc6 {[%clk 0:02:55]} 7. O-O {[%clk 0:03:02]}  cxd4 {[%clk 0:02:55]} 8. cxd4 {[%clk 0:03:00]}  Be7 {[%clk 0:02:55]} 9. Nc3 {[%clk 0:03:00]}  Qa5 {[%clk 0:02:55]} 10. a3 {[%clk 0:02:59]}  O-O {[%clk 0:02:54]} 11. Be3 {[%clk 0:02:54]}  Rd8 {[%clk 0:02:54]} 12. b4 {[%clk 0:02:54]}  Qc7 {[%clk 0:02:52]} 13. Qb3 {[%clk 0:02:53]}  b6 {[%clk 0:02:45]} 14. Rac1 {[%clk 0:02:50]}  Bb7 {[%clk 0:02:46]} 15. Rfd1 {[%clk 0:02:50]}  Rac8 {[%clk 0:02:44]} 16. d5 {[%clk 0:02:47]}  exd5 {[%clk 0:02:42]} 17. Nxd5 {[%clk 0:02:47]}  Nxd5 {[%clk 0:02:34]} 18. Rxd5 {[%clk 0:02:48]}  Rxd5 {[%clk 0:02:06]} 19. Qxd5 {[%clk 0:02:49]}  Qd8 {[%clk 0:02:03]} 20. Qb3 {[%clk 0:02:44]}  Bf6 {[%clk 0:02:01]} 21. Bc4 {[%clk 0:02:38]}  Qe7 {[%clk 0:01:59]} 22. Bd5 {[%clk 0:02:36]}  h6 {[%clk 0:01:55]} 23. h3 {[%clk 0:02:36]}  Nd8 {[%clk 0:01:45]} 24. Rxc8 {[%clk 0:02:10]}  Bxc8 {[%clk 0:01:46]} 25. Qc4 {[%clk 0:02:05]}  Be6 {[%clk 0:01:46]} 26. Bd4 {[%clk 0:01:57]}  Bxd4 {[%clk 0:01:37]} 27. Qxd4 {[%clk 0:01:57]}  Bxd5 {[%clk 0:01:34]} 28. Qxd5 {[%clk 0:01:58]}  Ne6 {[%clk 0:01:34]} 29. Ne5 {[%clk 0:01:48]}  Qg5 {[%clk 0:01:31]} 30. Qa8+ {[%clk 0:01:29]}  Kh7 {[%clk 0:01:31]} 31. Qe4+ {[%clk 0:01:28]}  f5 {[%clk 0:01:31]} 32. Qa8 {[%clk 0:00:54]}  Qc1+ {[%clk 0:01:28]} 0-1


[Site "https://www.chess.com"]

[Event "Titled Tuesday Blitz June 6 Early 2023"]
[White "Flynn, Jacob"]
[Black "Kramnik, Vladimir"]
[WhiteFideId "2509393"]
[BlackFideId "4101588"]
[WhiteElo "2053"]
[BlackElo "2703"]
[Result "0-1"]
[Round "1"]
[TimeControl "180+2"]
[Date "2023.06.06"]
[WhiteClock "0:01:16"]
[BlackClock "0:01:16"]
[Board "11"]

1. d4 {[%clk 0:02:59]}  Nf6 {[%clk 0:02:59]} 2. c4 {[%clk 0:02:49]}  e6 {[%clk 0:02:59]} 3. Nc3 {[%clk 0:02:49]}  d5 {[%clk 0:02:58]} 4. cxd5 {[%clk 0:02:49]}  exd5 {[%clk 0:02:58]} 5. Bg5 {[%clk 0:02:50]}  c6 {[%clk 0:02:58]} 6. e3 {[%clk 0:02:50]}  Bf5 {[%clk 0:02:56]} 7. Qf3 {[%clk 0:02:49]}  Bg6 {[%clk 0:02:56]} 8. Bxf6 {[%clk 0:02:50]}  Qxf6 {[%clk 0:02:56]} 9. Qxf6 {[%clk 0:02:50]}  gxf6 {[%clk 0:02:56]} 10. Nf3 {[%clk 0:02:50]}  a5 {[%clk 0:02:56]} 11. Ne2 {[%clk 0:02:46]}  Bb4+ {[%clk 0:02:45]} 12. Kd1 {[%clk 0:02:45]}  Bd6 {[%clk 0:02:40]} 13. Ng3 {[%clk 0:02:37]}  f5 {[%clk 0:02:34]} 14. Ne2 {[%clk 0:02:34]}  Nd7 {[%clk 0:02:32]} 15. Rc1 {[%clk 0:02:25]}  Nf6 {[%clk 0:02:31]} 16. Nf4 {[%clk 0:02:19]}  Ne4 {[%clk 0:02:30]} 17. Ke2 {[%clk 0:02:13]}  O-O {[%clk 0:02:23]} 18. g3 {[%clk 0:02:13]}  a4 {[%clk 0:02:19]} 19. a3 {[%clk 0:02:12]}  Ra6 {[%clk 0:02:08]} 20. Bg2 {[%clk 0:02:11]}  Rb6 {[%clk 0:02:06]} 21. Rc2 {[%clk 0:02:10]}  Re8 {[%clk 0:02:00]} 22. h4 {[%clk 0:02:05]}  Bxf4 {[%clk 0:01:55]} 23. gxf4 {[%clk 0:02:02]}  Bh5 {[%clk 0:01:56]} 24. Kd3 {[%clk 0:02:01]}  Rb3+ {[%clk 0:01:55]} 25. Ke2 {[%clk 0:01:59]}  Ng3+ {[%clk 0:01:51]} 26. fxg3 {[%clk 0:01:59]}  Rexe3+ {[%clk 0:01:51]} 27. Kf2 {[%clk 0:01:57]}  Bxf3 {[%clk 0:01:52]} 28. Rg1 {[%clk 0:01:46]}  Be4 {[%clk 0:01:46]} 29. Bxe4 {[%clk 0:01:35]}  fxe4 {[%clk 0:01:46]} 30. Rg2 {[%clk 0:01:34]}  h5 {[%clk 0:01:42]} 31. g4 {[%clk 0:01:33]}  Rf3+ {[%clk 0:01:42]} 32. Kg1 {[%clk 0:01:33]}  Rxf4 {[%clk 0:01:35]} 33. gxh5+ {[%clk 0:01:33]}  Kh7 {[%clk 0:01:33]} 34. Rcf2 {[%clk 0:01:32]}  Rbf3 {[%clk 0:01:26]} 35. Rxf3 {[%clk 0:01:27]}  Rxf3 {[%clk 0:01:25]} 36. Rg5 {[%clk 0:01:25]}  Kh6 {[%clk 0:01:24]} 37. Re5 {[%clk 0:01:25]}  f6 {[%clk 0:01:21]} 38. Re7 {[%clk 0:01:24]}  Rb3 {[%clk 0:01:17]} 39. Re6 {[%clk 0:01:20]}  Kxh5 {[%clk 0:01:16]} 40. Rxf6 {[%clk 0:01:16]}  Rxb2 {[%clk 0:01:16]} 0-1


[Site "https://www.chess.com"]

[Event "Titled Tuesday Blitz June 6 Early 2023"]
[White "Pranesh M"]
[Black "Urbina Perez, Juan Antonio"]
[WhiteFideId "35028600"]
[BlackFideId "2217368"]
[WhiteElo "2437"]
[BlackElo "2197"]
[Result "1-0"]
[Round "1"]
[TimeControl "180+2"]
[Date "2023.06.06"]
[WhiteClock "0:01:47"]
[BlackClock "0:00:31"]
[Board "12"]

1. e4 {[%clk 0:03:00]}  e6 {[%clk 0:02:51]} 2. d4 {[%clk 0:03:00]}  d5 {[%clk 0:02:51]} 3. Nc3 {[%clk 0:03:00]}  Bb4 {[%clk 0:02:50]} 4. e5 {[%clk 0:03:00]}  Ne7 {[%clk 0:02:50]} 5. a3 {[%clk 0:03:00]}  Bxc3+ {[%clk 0:02:50]} 6. bxc3 {[%clk 0:03:01]}  b6 {[%clk 0:02:50]} 7. h4 {[%clk 0:03:01]}  Ba6 {[%clk 0:02:50]} 8. Bd3 {[%clk 0:02:58]}  Qd7 {[%clk 0:02:45]} 9. h5 {[%clk 0:02:57]}  h6 {[%clk 0:02:42]} 10. Qg4 {[%clk 0:02:57]}  Bxd3 {[%clk 0:02:38]} 11. cxd3 {[%clk 0:02:58]}  Nf5 {[%clk 0:02:34]} 12. Ne2 {[%clk 0:02:59]}  Nc6 {[%clk 0:02:34]} 13. Ng3 {[%clk 0:02:48]}  Nxg3 {[%clk 0:02:17]} 14. Qxg7 {[%clk 0:02:40]}  O-O-O {[%clk 0:02:17]} 15. Qxg3 {[%clk 0:02:40]}  Na5 {[%clk 0:02:15]} 16. Be3 {[%clk 0:02:33]}  Qb5 {[%clk 0:01:59]} 17. Rd1 {[%clk 0:02:26]}  Qb2 {[%clk 0:01:38]} 18. O-O {[%clk 0:02:25]}  Qxc3 {[%clk 0:01:38]} 19. Qf4 {[%clk 0:02:24]}  Rdf8 {[%clk 0:01:33]} 20. Qf6 {[%clk 0:02:22]}  Nb3 {[%clk 0:01:12]} 21. Rc1 {[%clk 0:01:47]}  Nxc1 {[%clk 0:01:08]} 22. Rxc1 {[%clk 0:01:48]}  Qxd3 {[%clk 0:01:07]} 23. Qe7 {[%clk 0:01:47]}  c5 {[%clk 0:00:53]} 24. dxc5 {[%clk 0:01:47]}  b5 {[%clk 0:00:31]} 25. c6 {[%clk 0:01:47]} 1-0


[Site "https://www.chess.com"]

[Event "Titled Tuesday Blitz June 6 Early 2023"]
[White "Sokolov, Andrei"]
[Black "Shevchenko, Kirill"]
[WhiteFideId "11600306"]
[BlackFideId "14129574"]
[WhiteElo "2473"]
[BlackElo "2603"]
[Result "0-1"]
[Round "1"]
[TimeControl "180+2"]
[Date "2023.06.06"]
[WhiteClock "0:02:22"]
[BlackClock "0:02:43"]
[Board "13"]

1. e4 {[%clk 0:02:59]}  e6 {[%clk 0:02:59]} 2. d4 {[%clk 0:02:59]}  d5 {[%clk 0:03:00]} 3. e5 {[%clk 0:02:59]}  c5 {[%clk 0:03:00]} 4. c3 {[%clk 0:02:58]}  Nc6 {[%clk 0:03:00]} 5. Nf3 {[%clk 0:02:58]}  Qb6 {[%clk 0:02:56]} 6. Bd3 {[%clk 0:02:58]}  cxd4 {[%clk 0:02:55]} 7. O-O {[%clk 0:02:57]}  Bd7 {[%clk 0:02:56]} 8. Re1 {[%clk 0:02:56]}  Nge7 {[%clk 0:02:56]} 9. h4 {[%clk 0:02:56]}  h6 {[%clk 0:02:56]} 10. Qc2 {[%clk 0:02:42]}  Rc8 {[%clk 0:02:54]} 11. Nbd2 {[%clk 0:02:38]}  Nb4 {[%clk 0:02:52]} 12. Qb1 {[%clk 0:02:37]}  Nxd3 {[%clk 0:02:51]} 13. Qxd3 {[%clk 0:02:37]}  dxc3 {[%clk 0:02:52]} 14. bxc3 {[%clk 0:02:37]}  Bb5 {[%clk 0:02:51]} 15. Qc2 {[%clk 0:02:36]}  Nc6 {[%clk 0:02:51]} 16. Bb2 {[%clk 0:02:35]}  Nb4 {[%clk 0:02:45]} 17. Qb3 {[%clk 0:02:34]}  Nd3 {[%clk 0:02:46]} 18. Re3 {[%clk 0:02:33]}  Bc5 {[%clk 0:02:42]} 19. Re2 {[%clk 0:02:32]}  Nxb2 {[%clk 0:02:41]} 20. Qxb2 {[%clk 0:02:32]}  Bxe2 {[%clk 0:02:41]} 21. Qc2 {[%clk 0:02:31]}  Bxf2+ {[%clk 0:02:40]} 22. Kh1 {[%clk 0:02:30]}  Qe3 {[%clk 0:02:41]} 23. Nb3 {[%clk 0:02:27]}  Rxc3 {[%clk 0:02:41]} 24. Qb2 {[%clk 0:02:26]}  Bxf3 {[%clk 0:02:41]} 25. Rf1 {[%clk 0:02:22]}  Bxg2+ {[%clk 0:02:41]} 26. Kxg2 {[%clk 0:02:22]}  Qg3+ {[%clk 0:02:42]} 27. Kh1 {[%clk 0:02:22]}  Qh3# {[%clk 0:02:43]} 0-1


[Site "https://www.chess.com"]

[Event "Titled Tuesday Blitz June 6 Early 2023"]
[White "Hnydiuk, Aleksander"]
[Black "Henriquez Villagra, Cristobal"]
[WhiteFideId "1109057"]
[BlackFideId "3409350"]
[WhiteElo "2374"]
[BlackElo "2542"]
[Result "0-1"]
[Round "1"]
[TimeControl "180+2"]
[Date "2023.06.06"]
[WhiteClock "0:00:21"]
[BlackClock "0:00:58"]
[Board "15"]

1. e4 {[%clk 0:02:57]}  Nc6 {[%clk 0:02:59]} 2. Nf3 {[%clk 0:02:52]}  d6 {[%clk 0:02:58]} 3. d4 {[%clk 0:02:49]}  Nf6 {[%clk 0:02:59]} 4. Nc3 {[%clk 0:02:47]}  g6 {[%clk 0:02:59]} 5. Bg5 {[%clk 0:02:43]}  Bg7 {[%clk 0:02:57]} 6. Qd2 {[%clk 0:02:43]}  h6 {[%clk 0:02:57]} 7. Bh4 {[%clk 0:02:39]}  g5 {[%clk 0:02:57]} 8. Bg3 {[%clk 0:02:39]}  Nh5 {[%clk 0:02:58]} 9. O-O-O {[%clk 0:02:32]}  g4 {[%clk 0:02:45]} 10. d5 {[%clk 0:02:26]}  gxf3 {[%clk 0:02:44]} 11. dxc6 {[%clk 0:02:25]}  bxc6 {[%clk 0:02:43]} 12. gxf3 {[%clk 0:02:23]}  Bd7 {[%clk 0:02:22]} 13. f4 {[%clk 0:02:20]}  Qb8 {[%clk 0:02:22]} 14. Be2 {[%clk 0:02:07]}  Nxg3 {[%clk 0:02:21]} 15. hxg3 {[%clk 0:02:06]}  Qb6 {[%clk 0:02:19]} 16. e5 {[%clk 0:02:03]}  Rb8 {[%clk 0:02:18]} 17. b3 {[%clk 0:02:02]}  Qxf2 {[%clk 0:02:12]} 18. Ne4 {[%clk 0:01:53]}  Qb6 {[%clk 0:02:06]} 19. c4 {[%clk 0:01:41]}  Bf5 {[%clk 0:01:59]} 20. c5 {[%clk 0:01:41]}  Qb4 {[%clk 0:01:50]} 21. cxd6 {[%clk 0:01:05]}  cxd6 {[%clk 0:01:27]} 22. exd6 {[%clk 0:00:44]}  Qxe4 {[%clk 0:01:10]} 23. d7+ {[%clk 0:00:39]}  Kd8 {[%clk 0:01:11]} 24. Qa5+ {[%clk 0:00:38]}  Rb6 {[%clk 0:01:11]} 25. Bd3 {[%clk 0:00:35]}  Qe3+ {[%clk 0:01:08]} 26. Rd2 {[%clk 0:00:29]}  Bxd3 {[%clk 0:01:02]} 27. Qxa7 {[%clk 0:00:27]}  Bb2+ {[%clk 0:00:58]} 28. Kd1 {[%clk 0:00:24]}  Qf3+ {[%clk 0:00:57]} 29. Ke1 {[%clk 0:00:21]}  Qxh1+ {[%clk 0:00:57]} 30. Kf2 {[%clk 0:00:21]}  Bd4# {[%clk 0:00:58]} 0-1


[Site "https://www.chess.com"]